fUSD/lending_fUSD_20250311
["ID","MTS","AMOUNT","RATE_DAILY","PERIOD"]
[355941000,1741723840405,-850.31,8.99e-05,2]
[355941001,1741723840415,-500.0,8.99e-05,2]
[355941002,1741723840423,-500.0,8.99e-05,2]
[355941003,1741723840432,-72.53286866,8.99e-05,2]
[355941004,1741723840445,-594.39713134,8.99e-05,2]
[355941005,1741723840455,-500.0,8.99e-05,2]
[355941006,1741723840464,-716.57,8.99e-05,2]
[355941007,1741723840474,-639.94,8.99e-05,2]
[355941008,1741723840483,-500.0,8.99e-05,2]
[355941009,1741723840492,-500.0,8.99e-05,2]
[355941010,1741723840501,-500.0,8.99e-05,2]
[355941011,1741723840511,-646.78,8.99e-05,2]
[355941012,1741723840522,-500.0,8.99e-05,2]
[355941013,1741723840531,-500.0,8.99e-05,2]
[355941014,1741723840541,-500.0,8.99e-05,2]
[355941015,1741723840550,-500.0,8.99e-05,2]
[355941016,1741723840559,-500.0,8.99e-05,2]
[355941017,1741723840569,-822.95,8.99e-05,2]
[355941018,1741723840579,-500.0,8.99e-05,2]
[355941019,1741723840588,-868.64,8.99e-05,2]
[355941020,1741723840598,-500.0,8.99e-05,2]
[355941021,1741723840607,-1096.23,8.99e-05,2]
[355941022,1741723840617,-500.0,8.99e-05,2]
[355941023,1741723840626,-500.0,8.99e-05,2]
[355941024,1741723840635,-584.02,8.99e-05,2]
[355941025,1741723840646,-500.0,8.99e-05,2]
[355941026,1741723840656,-538.2,8.99e-05,2]
[355941027,1741723840665,-500.0,8.99e-05,2]
[355941028,1741723840675,-500.0,8.99e-05,2]
[355941029,1741723840685,-500.0,8.99e-05,2]
[355941030,1741723840695,-556.63840408,8.99e-05,2]
[355941031,1741723840704,-500.0,8.99e-05,2]
[355941032,1741723840712,-872.89,8.99e-05,2]
[355941033,1741723840723,-551.79,8.99e-05,2]
[355941034,1741723840732,-1402.99,8.99e-05,2]
[355941035,1741723840742,-566.03,8.99e-05,2]
[355941036,1741723840751,-531.23709183,8.99e-05,2]
[355941037,1741723840761,-500.0,8.99e-05,2]
[355941038,1741723840771,-343.65679705,8.99e-05,2]
[355941039,1741723840781,-500.0,8.99e-05,2]
[355941040,1741723840791,-868.93,8.99e-05,2]
[355941041,1741723840801,-500.0,8.99e-05,2]
[355941042,1741723840811,-664.62,8.99e-05,2]
[355941043,1741723840821,-500.0,8.99e-05,2]
[355941044,1741723840831,-500.0,8.99e-05,2]
[355941045,1741723840840,-500.0,8.99e-05,2]
[355941046,1741723840849,-500.0,8.99e-05,2]
[355941047,1741723840859,-1545.26,8.99e-05,2]
[355941048,1741723840869,-500.0,8.99e-05,2]
[355941049,1741723840878,-1217.68,8.99e-05,2]
[355941050,1741723840888,-500.0,8.99e-05,2]
[355941051,1741723840897,-500.0,8.99e-05,2]
[355941052,1741723840907,-500.0,8.99e-05,2]
[355941053,1741723840916,-505.8,8.99e-05,2]
[355941054,1741723840925,-500.0,8.99e-05,2]
[355941055,1741723840935,-755.03,8.99e-05,2]
[355941056,1741723840945,-1459.31,8.99e-05,2]
[355941057,1741723840954,-500.0,8.99e-05,2]
[355941058,1741723840963,-500.0,8.99e-05,2]
[355941059,1741723840973,-532.58527162,8.99e-05,2]
[355941060,1741723840982,-500.0,8.99e-05,2]
[355941061,1741723840991,-500.0,8.99e-05,2]
[355941062,1741723841001,-500.0,8.99e-05,2]
[355941063,1741723841010,-568.7,8.99e-05,2]
[355941064,1741723841020,-500.0,8.99e-05,2]
[355941065,1741723841030,-675.73,8.99e-05,2]
[355941066,1741723841039,-500.0,8.99e-05,2]
[355941067,1741723841048,-500.0,8.99e-05,2]
[355941068,1741723841058,-1056.71,8.99e-05,2]
[355941069,1741723841067,-500.0,8.99e-05,2]
[355941070,1741723841076,-661.44,8.99e-05,2]
[355941071,1741723841085,-500.0,8.99e-05,2]
[355941072,1741723841094,-211.6072286,8.99e-05,2]
[355941073,1741723841104,-500.0,8.99e-05,2]
[355941074,1741723841114,-898.9,8.99e-05,2]
[355941075,1741723841123,-500.0,8.99e-05,2]
[355941076,1741723841133,-500.0,8.99e-05,2]
[355941077,1741723841142,-500.0,8.99e-05,2]
[355941078,1741723841153,-869.79,8.99e-05,2]
[355941079,1741723841162,-1504.55,8.99e-05,2]
[355941080,1741723841171,-525.95,8.99e-05,2]
[355941081,1741723841180,-1613.54,8.99e-05,2]
[355941082,1741723841189,-500.0,8.99e-05,2]
[355941083,1741723841199,-500.0,8.99e-05,2]
[355941084,1741723841209,-500.0,8.99e-05,2]
[355941085,1741723841218,-231.2041933,8.99e-05,2]
[355941086,1741723841228,-500.0,8.99e-05,2]
[355941087,1741723841238,-401.6902599,8.99e-05,2]
[355941088,1741723841248,-500.0,8.99e-05,2]
[355941089,1741723841258,-718.96,8.99e-05,2]
[355941090,1741723841270,-500.0,8.99e-05,2]
[355941091,1741723841281,-500.0,8.99e-05,2]
[355941092,1741723841294,-1453.35,8.99e-05,2]
[355941093,1741723841312,-500.0,8.99e-05,2]
[355941094,1741723841325,-500.0,8.99e-05,2]
[355941095,1741723841334,-505.69,8.99e-05,2]
[355941096,1741723841345,-526.3,8.99e-05,2]
[355941097,1741723841354,-500.0,8.99e-05,2]
[355941098,1741723841364,-500.0,8.99e-05,2]
[355941099,1741723841374,-1582.74,8.99e-05,2]
[355941100,1741723841383,-500.0,8.99e-05,2]
[355941101,1741723841393,-1502.35,8.99e-05,2]
[355941102,1741723841403,-500.0,8.99e-05,2]
[355941103,1741723841413,-500.0,8.99e-05,2]
[355941104,1741723841423,-500.0,8.99e-05,2]
[355941105,1741723841433,-836.0,8.99e-05,2]
[355941106,1741723841443,-500.0,8.99e-05,2]
[355941107,1741723841453,-599.66,8.99e-05,2]
[355941108,1741723841462,-1269.86,8.99e-05,2]
[355941109,1741723841472,-500.0,8.99e-05,2]
[355941110,1741723841482,-500.0,8.99e-05,2]
[355941111,1741723841491,-500.0,8.99e-05,2]
[355941112,1741723841501,-1178.09,8.99e-05,2]
[355941113,1741723841510,-2462.91,8.99e-05,2]
[355941114,1741723841519,-672.73,8.99e-05,2]
[355941115,1741723841529,-1200.61,8.99e-05,2]
[355941116,1741723841538,-500.0,8.99e-05,2]
[355941117,1741723841547,-944.41,8.99e-05,2]
[355941118,1741723841557,-676.32,8.99e-05,2]
[355941119,1741723841567,-1314.6,8.99e-05,2]
[355941120,1741723841576,-500.0,8.99e-05,2]
[355941121,1741723841585,-3476.27,8.99e-05,2]
[355941122,1741723841595,-1222.38,8.99e-05,2]
[355941123,1741723841604,-500.0,8.99e-05,2]
[355941124,1741723841613,-500.0,8.99e-05,2]
[355941125,1741723841624,-1244.0,8.99e-05,2]
[355941126,1741723841633,-1591.05,8.99e-05,2]
[355941127,1741723841643,-589.44,8.99e-05,2]
[355941128,1741723841653,-500.0,8.99e-05,2]
[355941129,1741723841663,-500.0,8.99e-05,2]
[355941130,1741723841672,-2298.87,8.99e-05,2]
[355941131,1741723841681,-500.0,8.99e-05,2]
[355941132,1741723841690,-1787.14,8.99e-05,2]
[355941133,1741723841700,-500.0,8.99e-05,2]
[355941134,1741723841709,-849.24,8.99e-05,2]
[355941135,1741723841719,-2252.82,8.99e-05,2]
[355941136,1741723841728,-500.0,8.99e-05,2]
[355941137,1741723841738,-544.64,8.99e-05,2]
[355941138,1741723841747,-617.73,8.99e-05,2]
[355941139,1741723841756,-500.0,8.99e-05,2]
[355941140,1741723841765,-500.0,8.99e-05,2]
[355941141,1741723841774,-500.0,8.99e-05,2]
[355941142,1741723841783,-535.81,8.99e-05,2]
[355941143,1741723841793,-1104.24,8.99e-05,2]
[355941144,1741723841803,-795.28,8.99e-05,2]
[355941145,1741723841812,-581.39,8.99e-05,2]
[355941146,1741723841822,-1302.19,8.99e-05,2]
[355941147,1741723841831,-500.0,8.99e-05,2]
[355941148,1741723841841,-500.0,8.99e-05,2]
[355941149,1741723841851,-500.0,8.99e-05,2]
[355941150,1741723841860,-500.0,8.99e-05,2]
[355941151,1741723841870,-500.0,8.99e-05,2]
[355941152,1741723841881,-977.07,8.99e-05,2]
[355941153,1741723841890,-1462.29,8.99e-05,2]
[355941154,1741723841900,-633.2,8.99e-05,2]
[355941155,1741723841910,-2183.29,8.99e-05,2]
[355941156,1741723841921,-1497.11,8.99e-05,2]
[355941157,1741723841930,-500.0,8.99e-05,2]
[355941158,1741723841940,-500.0,8.99e-05,2]
[355941159,1741723841949,-500.0,8.99e-05,2]
[355941160,1741723841958,-1760.07,8.99e-05,2]
[355941161,1741723841968,-1935.21,8.99e-05,2]
[355941162,1741723841977,-500.0,8.99e-05,2]
[355941163,1741723841986,-1746.25,8.99e-05,2]
[355941164,1741723841996,-1339.01,8.99e-05,2]
[355941165,1741723842006,-500.0,8.99e-05,2]
[355941166,1741723842015,-500.0,8.99e-05,2]
[355941167,1741723842024,-500.0,8.99e-05,2]
[355941168,1741723842034,-2271.23,8.99e-05,2]
[355941169,1741723842043,-1315.34,8.99e-05,2]
[355941170,1741723842052,-500.0,8.99e-05,2]
[355941171,1741723842062,-500.0,8.99e-05,2]
[355941172,1741723842071,-854.73,8.99e-05,2]
[355941173,1741723842081,-790.3,8.99e-05,2]
[355941174,1741723842090,-2730.88,8.99e-05,2]
[355941175,1741723842099,-645.64,8.99e-05,2]
[355941176,1741723842109,-2281.58,8.99e-05,2]
[355941177,1741723842118,-500.0,8.99e-05,2]
[355941178,1741723842128,-500.0,8.99e-05,2]
[355941179,1741723842137,-510.42,8.99e-05,2]
[355941180,1741723842148,-539.23,8.99e-05,2]
[355941181,1741723842157,-500.0,8.99e-05,2]
[355941182,1741723842168,-1235.1,8.99e-05,2]
[355941183,1741723842177,-1914.58,8.99e-05,2]
[355941184,1741723842187,-1347.06,8.99e-05,2]
[355941185,1741723842196,-500.0,8.99e-05,2]
[355941186,1741723842206,-786.53,8.99e-05,2]
[355941187,1741723842215,-500.0,8.99e-05,2]
[355941188,1741723842225,-500.0,8.99e-05,2]
[355941189,1741723842235,-500.0,8.99e-05,2]
[355941190,1741723842245,-500.0,8.99e-05,2]
[355941191,1741723842255,-999.4,8.99e-05,2]
[355941192,1741723842265,-500.0,8.99e-05,2]
[355941193,1741723842278,-1273.31,8.99e-05,2]
[355941194,1741723842288,-500.0,8.99e-05,2]
[355941195,1741723842298,-1093.9,8.99e-05,2]
[355941196,1741723842309,-841.43,8.99e-05,2]
[355941197,1741723842319,-1352.33,8.99e-05,2]
[355941198,1741723842328,-500.0,8.99e-05,2]
[355941199,1741723842338,-500.0,8.99e-05,2]
[355941200,1741723842349,-500.0,8.99e-05,2]
[355941201,1741723842359,-4583.63,8.99e-05,2]
[355941202,1741723842368,-500.0,8.99e-05,2]
[355941203,1741723842377,-500.0,8.99e-05,2]
[355941204,1741723842387,-1087.19,8.99e-05,2]
[355941205,1741723842396,-500.0,8.99e-05,2]
[355941206,1741723842409,-541.7,8.99e-05,2]
[355941207,1741723842419,-1906.42,8.99e-05,2]
[355941208,1741723842428,-1929.94,8.99e-05,2]
[355941209,1741723842438,-715.45,8.99e-05,2]
[355941210,1741723842447,-500.0,8.99e-05,2]
[355941211,1741723842457,-500.0,8.99e-05,2]
[355941212,1741723842467,-688.03,8.99e-05,2]
[355941213,1741723842477,-500.0,8.99e-05,2]
[355941214,1741723842487,-736.76,8.99e-05,2]
[355941215,1741723842496,-500.0,8.99e-05,2]
[355941216,1741723842506,-2444.61,8.99e-05,2]
[355941217,1741723842767,-1044.97,8.99e-05,2]
[355941218,1741723842777,-1968.43,8.99e-05,2]
[355941219,1741723842787,-1350.94,8.99e-05,2]
[355941220,1741723842796,-500.0,8.99e-05,2]
[355941221,1741723842806,-557.08518604,8.99e-05,2]
[355941222,1741723842815,-500.0,8.99e-05,2]
[355941223,1741723842824,-500.0,8.99e-05,2]
[355941224,1741723842834,-3501.3,8.99e-05,2]
[355941225,1741723842843,-500.0,8.99e-05,2]
[355941226,1741723842852,-500.0,8.99e-05,2]
[355941227,1741723842861,-1349.25,8.99e-05,2]
[355941228,1741723842871,-380.07656607,8.99e-05,2]
[355941246,1741723843625,-0.00210956,8.99e-05,2]
[355941325,1741723844382,-748.11132437,8.99e-05,2]
[355941328,1741723844395,-510.49,8.99e-05,2]
[355941330,1741723844408,-500.0,8.99e-05,2]
[355941332,1741723844422,-1305.24,8.99e-05,2]
[355941335,1741723844434,-157.85695625,8.99e-05,2]
[355941337,1741723844447,-500.0,8.99e-05,2]
[355941340,1741723844461,-541.51,8.99e-05,2]
[355941342,1741723844474,-991.38,8.99e-05,2]
[355941344,1741723844487,-500.0,8.99e-05,2]
[355941347,1741723844500,-500.0,8.99e-05,2]
[355941349,1741723844513,-1839.15,8.99e-05,2]
[355941351,1741723844526,-500.0,8.991e-05,2]
[355941354,1741723844539,-1158.11,8.991e-05,2]
[355941356,1741723844551,-561.19697503,8.991e-05,2]
[355941358,1741723844565,-500.0,8.991e-05,2]
[355941361,1741723844577,-500.0,8.991e-05,2]
[355941363,1741723844590,-500.0,8.991e-05,2]
[355941365,1741723844603,-500.0,8.991e-05,2]
[355941368,1741723844615,-500.0,8.991e-05,2]
[355941370,1741723844628,-500.0,8.991e-05,2]
[355941372,1741723844641,-500.0,8.991e-05,2]
[355941374,1741723844653,-1289.4,8.991e-05,2]
[355941377,1741723844666,-500.0,8.991e-05,2]
[355941379,1741723844678,-500.0,8.991e-05,2]
[355941381,1741723844690,-500.0,8.991e-05,2]
[355941384,1741723844703,-1756.26,8.991e-05,2]
[355941386,1741723844716,-772.04,8.991e-05,2]
[355941388,1741723844729,-500.0,8.991e-05,2]
[355941391,1741723844741,-500.0,8.991e-05,2]
[355941393,1741723844754,-650.78,8.991e-05,2]
[355941395,1741723844766,-500.0,8.991e-05,2]
[355941398,1741723844778,-500.0,8.991e-05,2]
[355941400,1741723844790,-1180.87,8.991e-05,2]
[355941402,1741723844803,-500.0,8.991e-05,2]
[355941405,1741723844815,-724.28,8.991e-05,2]
[355941407,1741723844828,-558.21,8.991e-05,2]
[355941409,1741723844841,-500.0,8.991e-05,2]
[355941412,1741723844854,-930.16,8.991e-05,2]
[355941414,1741723844866,-500.0,8.991e-05,2]
[355941416,1741723844878,-500.0,8.991e-05,2]
[355941419,1741723844891,-500.0,8.991e-05,2]
[355941421,1741723844904,-500.0,8.991e-05,2]
[355941423,1741723844917,-1649.44,8.991e-05,2]
[355941425,1741723844928,-1566.78,8.991e-05,2]
[355941428,1741723844941,-500.0,8.991e-05,2]
[355941430,1741723844953,-569.39,8.991e-05,2]
[355941432,1741723844966,-500.0,8.991e-05,2]
[355941435,1741723844978,-500.0,8.991e-05,2]
[355941437,1741723844991,-500.0,8.991e-05,2]
[355941439,1741723845004,-500.0,8.991e-05,2]
[355941442,1741723845016,-500.0,8.991e-05,2]
[355941444,1741723845028,-630.34,8.991e-05,2]
[355941446,1741723845041,-500.0,8.991e-05,2]
[355941449,1741723845053,-730.04,8.991e-05,2]
[355941451,1741723845068,-500.0,8.991e-05,2]
[355941454,1741723845081,-500.0,8.991e-05,2]
[355941456,1741723845093,-907.12,8.991e-05,2]
[355941458,1741723845106,-500.0,8.991e-05,2]
[355941461,1741723845119,-510.76,8.991e-05,2]
[355941463,1741723845132,-912.26,8.991e-05,2]
[355941465,1741723845145,-617.19,8.991e-05,2]
[355941468,1741723845158,-500.0,8.991e-05,2]
[355941470,1741723845170,-500.0,8.991e-05,2]
[355941472,1741723845183,-500.0,8.991e-05,2]
[355941475,1741723845196,-500.0,8.991e-05,2]
[355941477,1741723845210,-500.0,8.991e-05,2]
[355941479,1741723845222,-500.0,8.991e-05,2]
[355941482,1741723845236,-500.0,8.991e-05,2]
[355941484,1741723845249,-1004.91,8.991e-05,14]
[355941487,1741723845263,-500.0,8.991e-05,2]
[355941489,1741723845278,-500.0,8.991e-05,2]
[355941491,1741723845292,-500.0,8.991e-05,2]
[355941494,1741723845304,-500.0,8.991e-05,2]
[355941496,1741723845318,-500.0,8.991e-05,2]
[355941499,1741723845339,-500.0,8.991e-05,2]
[355941501,1741723845352,-500.0,8.991e-05,2]
[355941503,1741723845366,-500.0,8.991e-05,2]
[355941506,1741723845378,-940.05,8.991e-05,2]
[355941508,1741723845391,-1582.3,8.991e-05,2]
[355941510,1741723845404,-681.38,8.991e-05,2]
[355941513,1741723845416,-783.51,8.991e-05,2]
[355941515,1741723845429,-500.0,8.991e-05,2]
[355941517,1741723845441,-500.0,8.991e-05,2]
[355941520,1741723845454,-980.95,8.991e-05,2]
[355941522,1741723845468,-500.0,8.991e-05,2]
[355941525,1741723845481,-571.57,8.991e-05,2]
[355941527,1741723845495,-500.0,8.991e-05,2]
[355941530,1741723845508,-1698.65,8.991e-05,2]
[355941532,1741723845517,-500.0,8.991e-05,2]
[355941533,1741723845527,-500.0,8.991e-05,2]
[355941535,1741723845536,-500.0,8.991e-05,2]
[355941537,1741723845545,-500.0,8.991e-05,2]
[355941539,1741723845554,-500.0,8.991e-05,2]
[355941541,1741723845563,-1169.87,8.991e-05,2]
[355941543,1741723845572,-641.24,8.991e-05,2]
[355941546,1741723845582,-500.0,8.991e-05,2]
[355941547,1741723845591,-500.0,8.991e-05,2]
[355941549,1741723845600,-500.0,8.991e-05,2]
[355941551,1741723845610,-293.0031694,8.991e-05,2]
[355941553,1741723845619,-848.93,8.991e-05,2]
[355941555,1741723845628,-500.0,8.991e-05,2]
[355941557,1741723845637,-500.0,8.991e-05,2]
[355941559,1741723845646,-500.0,8.991e-05,2]
[355941561,1741723845657,-500.0,8.991e-05,2]
[355941563,1741723845666,-500.0,8.991e-05,2]
[355941565,1741723845675,-500.0,8.991e-05,2]
[355941567,1741723845684,-548.26892812,8.991e-05,2]
[355941569,1741723845694,-500.0,8.991e-05,2]
[355941584,1741723846134,-500.0,8.991e-05,2]
[355941588,1741723846165,-512.19,8.991e-05,2]
[355941591,1741723846188,-500.0,8.991e-05,2]
[355941593,1741723846199,-528.54,8.991e-05,2]
[355941595,1741723846209,-500.0,8.991e-05,2]
[355941597,1741723846218,-500.0,8.991e-05,2]
[355941599,1741723846228,-539.56,8.991e-05,2]
[355941601,1741723846238,-500.0,8.991e-05,2]
[355941603,1741723846247,-1657.43,8.991e-05,2]
[355941605,1741723846256,-500.0,8.991e-05,2]
[355941607,1741723846266,-722.09,8.991e-05,2]
[355941609,1741723846278,-1542.06,8.991e-05,2]
[355941611,1741723846287,-500.0,8.991e-05,2]
[355941613,1741723846296,-500.0,8.991e-05,2]
[355941615,1741723846306,-500.0,8.991e-05,2]
[355941617,1741723846316,-500.0,8.991e-05,2]
[355941619,1741723846331,-503.13,8.991e-05,2]
[355941621,1741723846340,-524.32,8.991e-05,2]
[355941623,1741723846349,-997.78,8.991e-05,2]
[355941625,1741723846359,-500.0,8.991e-05,2]
[355941627,1741723846368,-500.0,8.991e-05,2]
[355941629,1741723846378,-500.0,8.991e-05,2]
[355941631,1741723846388,-500.0,8.991e-05,2]
[355941633,1741723846397,-1212.16,8.991e-05,2]
[355941635,1741723846406,-614.3485043,8.991e-05,2]
[355941637,1741723846415,-500.0,8.991e-05,2]
[355941639,1741723846424,-1088.51,8.991e-05,2]
[355941641,1741723846434,-500.0,8.991e-05,2]
[355941643,1741723846443,-1522.71,8.991e-05,2]
[355941645,1741723846453,-500.0,8.991e-05,2]
[355941647,1741723846462,-619.47,8.991e-05,2]
[355941649,1741723846471,-540.46,8.991e-05,2]
[355941651,1741723846481,-500.0,8.991e-05,2]
[355941653,1741723846491,-500.0,8.991e-05,2]
[355941655,1741723846500,-938.07,8.991e-05,2]
[355941657,1741723846510,-500.0,8.991e-05,2]
[355941659,1741723846524,-1181.91,8.991e-05,2]
[355941661,1741723846534,-500.0,8.991e-05,2]
[355941663,1741723846543,-500.0,8.991e-05,2]
[355941665,1741723846553,-1032.19,8.991e-05,2]
[355941667,1741723846562,-500.0,8.991e-05,2]
[355941669,1741723846571,-500.0,8.991e-05,2]
[355941671,1741723846581,-500.0,8.991e-05,2]
[355941673,1741723846590,-500.0,8.991e-05,2]
[355941675,1741723846600,-566.36,8.991e-05,2]
[355941677,1741723846609,-500.0,8.991e-05,2]
[355941679,1741723846618,-500.0,8.991e-05,2]
[355941681,1741723846627,-1147.86,8.991e-05,2]
[355941683,1741723846637,-500.0,8.991e-05,2]
[355941685,1741723846646,-500.0,8.991e-05,2]
[355941687,1741723846655,-526.03,8.991e-05,2]
[355941689,1741723846666,-859.07,8.991e-05,2]
[355941691,1741723846676,-1583.38,8.991e-05,2]
[355941693,1741723846686,-500.0,8.991e-05,2]
[355941695,1741723846695,-606.55,8.991e-05,2]
[355941697,1741723846705,-500.0,8.991e-05,2]
[355941699,1741723846714,-500.0,8.991e-05,2]
[355941701,1741723846723,-500.0,8.991e-05,2]
[355941703,1741723846732,-1726.73,8.991e-05,2]
[355941705,1741723846741,-500.0,8.991e-05,2]
[355941707,1741723846750,-753.08,8.991e-05,2]
[355941709,1741723846759,-500.0,8.991e-05,2]
[355941711,1741723846769,-500.0,8.991e-05,2]
[355941713,1741723846778,-353.03687858,8.991e-05,2]
[355941715,1741723846787,-500.0,8.991e-05,2]
[355941717,1741723846796,-317.94473414,8.991e-05,2]
[355941719,1741723846806,-583.15,8.991e-05,2]
[355941721,1741723846815,-500.0,8.991e-05,2]
[355941723,1741723846825,-500.0,8.991e-05,2]
[355941725,1741723846834,-571.79,8.991e-05,2]
[355941727,1741723846843,-500.0,8.991e-05,2]
[355941729,1741723846852,-4178.91,8.991e-05,2]
[355941731,1741723846861,-500.0,8.991e-05,2]
[355941733,1741723846871,-500.0,8.991e-05,2]
[355941735,1741723846881,-500.0,8.991e-05,2]
[355941737,1741723846890,-500.0,8.991e-05,2]
[355941739,1741723846901,-548.01,8.991e-05,2]
[355941741,1741723846912,-578.56662253,8.991e-05,2]
[355941743,1741723846922,-500.0,8.991e-05,2]
[355941745,1741723846931,-500.0,8.991e-05,2]
[355941747,1741723846940,-1566.58,8.991e-05,2]
[355941749,1741723846950,-500.0,8.991e-05,2]
[355941751,1741723846959,-500.0,8.991e-05,2]
[355941753,1741723846969,-500.0,8.991e-05,2]
[355941755,1741723846978,-500.0,8.991e-05,2]
[355941757,1741723846988,-1141.82,8.991e-05,2]
[355941759,1741723846998,-500.0,8.991e-05,2]
[355941761,1741723847008,-634.53,8.991e-05,2]
[355941763,1741723847017,-500.0,8.991e-05,2]
[355941765,1741723847026,-500.0,8.991e-05,2]
[355941767,1741723847036,-568.32,8.991e-05,2]
[355941769,1741723847046,-639.66,8.991e-05,2]
[355941771,1741723847055,-500.0,8.991e-05,2]
[355941773,1741723847064,-1035.91,8.991e-05,2]
[355941775,1741723847073,-500.0,8.991e-05,2]
[355941777,1741723847083,-1575.48,8.991e-05,2]
[355941779,1741723847093,-500.0,8.991e-05,2]
[355941781,1741723847102,-1981.04,8.991e-05,2]
[355941783,1741723847113,-500.0,8.991e-05,2]
[355941785,1741723847122,-1446.8,8.991e-05,2]
[355941787,1741723847132,-1448.71,8.991e-05,2]
[355941789,1741723847141,-500.0,8.991e-05,2]
[355941791,1741723847151,-500.0,8.991e-05,2]
[355941793,1741723847161,-1132.32,8.991e-05,2]
[355941795,1741723847171,-500.0,8.991e-05,2]
[355941797,1741723847181,-500.0,8.991e-05,2]
[355941799,1741723847190,-1352.98,8.991e-05,2]
[355941801,1741723847200,-500.0,8.991e-05,2]
[355941803,1741723847209,-500.0,8.991e-05,2]
[355941805,1741723847218,-500.0,8.991e-05,2]
[355941807,1741723847228,-1169.91,8.991e-05,2]
[355941809,1741723847238,-500.0,8.991e-05,2]
[355941811,1741723847247,-1143.39,8.991e-05,2]
[355941813,1741723847256,-500.0,8.991e-05,2]
[355941815,1741723847267,-1184.44,8.991e-05,2]
[355941817,1741723847280,-500.0,8.991e-05,2]
[355941819,1741723847289,-1567.08,8.991e-05,2]
[355941821,1741723847299,-500.0,8.991e-05,2]
[355941823,1741723847308,-500.0,8.991e-05,2]
[355941825,1741723847318,-500.0,8.991e-05,2]
[355941827,1741723847327,-500.0,8.991e-05,2]
[355941829,1741723847336,-1449.24,8.991e-05,2]
[355941831,1741723847346,-236.50162785,8.991e-05,2]
[355941833,1741723847355,-1793.72,8.991e-05,2]
[355941835,1741723847364,-1092.99,8.991e-05,2]
[355941837,1741723847374,-500.0,8.991e-05,2]
[355941839,1741723847383,-500.0,8.991e-05,2]
[355941841,1741723847393,-1269.99,8.991e-05,2]
[355941843,1741723847402,-1523.38,8.991e-05,2]
[355941845,1741723847411,-500.0,8.991e-05,2]
[355941847,1741723847421,-500.0,8.991e-05,2]
[355941849,1741723847430,-500.0,8.991e-05,2]
[355941851,1741723847440,-785.11,8.991e-05,2]
[355941853,1741723847449,-500.0,8.991e-05,2]
[355941855,1741723847459,-500.0,8.991e-05,2]
[355941857,1741723847469,-500.0,8.991e-05,2]
[355941859,1741723847478,-982.42,8.991e-05,2]
[355941861,1741723847488,-505.29,8.991e-05,2]
[355941863,1741723847497,-500.0,8.991e-05,2]
[355941865,1741723847506,-500.0,8.991e-05,2]
[355941867,1741723847516,-500.0,8.991e-05,2]
[355941869,1741723847525,-1211.13,8.991e-05,2]
[355941871,1741723847535,-500.0,8.991e-05,2]
[355941873,1741723847544,-500.0,8.991e-05,2]
[355941875,1741723847553,-995.23,8.991e-05,2]
[355941877,1741723847563,-500.0,8.991e-05,2]
[355941879,1741723847572,-500.0,8.991e-05,2]
[355941881,1741723847581,-500.0,8.991e-05,2]
[355941883,1741723847591,-1489.76,8.991e-05,2]
[355941885,1741723847600,-500.0,8.991e-05,2]
[355941887,1741723847609,-1673.61,8.991e-05,2]
[355941889,1741723847620,-1270.17,8.991e-05,2]
[355941891,1741723847629,-1460.21,8.991e-05,2]
[355941893,1741723847638,-277.29799408,8.991e-05,2]
[355941895,1741723847647,-288.05,8.991e-05,2]
[355941897,1741723847657,-569.36,8.991e-05,2]
[355941899,1741723847667,-1203.06,8.991e-05,2]
[355941901,1741723847676,-500.0,8.991e-05,2]
[355941903,1741723847685,-500.0,8.991e-05,2]
[355941905,1741723847694,-665.92,8.991e-05,2]
[355941907,1741723847703,-1088.59,8.991e-05,2]
[355941909,1741723847712,-500.0,8.991e-05,2]